Cogmind - Beta 9.2 @@@ ROGUE MODE // 2019.11.22 @ 19:27:27 Player: Alexbot Result: Escaped! Performance ------------- Evolutions (9) 4500 Regions Visited (32) 6400 Robots Destroyed (317) 1585 Value Destroyed (15934) 15934 Prototype IDs (85) 1700 Alien Tech Used (1) 200 Bonus (26177) 26177 TOTAL SCORE: 56496 Bonus ------- Scavenger 8000 High Alert Combat Kills 356 Follower Combat Kills 1918 Entered Garrisons 200 Used RIF Installer 500 Network Hubs Disabled 400 Aligned with FarCom 300 Met Data Miner 300 Met Warlord at Base 500 MAIN.C Attacked Warlord 500 Met R17 at Cetus 500 Found Hidden Lab 3000 Win 3000 Challenge Win 7000 Friendly Fire -297 Cogmind --------- Core Integrity 1600/1600 Matter 190/300 Energy 252/260 System Corruption 0% Temperature Cool (22) Movement Hovering (48) Location To Epsilon Eridani Parts ------- > --- POWER (2) -------- Light Particle Reactor Light Particle Reactor > --- PROPULSION (5) --- Improved Antigrav System Combat Linear Gravjet Combat Linear Gravjet Combat Linear Gravjet > --- UTILITY (15) ----- Advanced Coolant Injector Large Storage Unit Large Storage Unit Large Storage Unit Large Storage Unit Experimental Terrain Scanner Experimental Terrain Scan Processor Experimental Core Analyzer Experimental Cloaking Device Experimental Propulsion Shielding Experimental Utility Shielding Advanced Hacking Suite System Mapper Deep Network Scanner Deep Network Scanner > --- WEAPON (3) ------- Enhanced Nova Cannon > --- INVENTORY (28) --- Advanced Heavy Treads Improved Energy Well (600) Precision Energy Filter Advanced Weapon Cycler Experimental Transmission Jammer Advanced Reaction Control System Advanced Phase Shifter Experimental Weapon Shielding Experimental Powered Armor EM Dispersion Field Advanced Force Field Relay Coupler [NC] (37) System Purifier Transdimensional Reconstructor Core Regenerator Gamma Rifle Gamma Rifle Gamma Rifle Potential Cannon AWS/Autocannon Mini Smartbomb Launcher Guided Remote Datajack Peak State ------------ > --- POWER ------------ Light Antimatter Reactor Light Quantum Reactor > --- PROPULSION ------- Combat Linear Gravjet Combat Linear Gravjet Combat Linear Gravjet Combat Linear Gravjet > --- UTILITY ---------- Large Storage Unit Large Storage Unit Large Storage Unit Large Storage Unit Experimental Terrain Scan Processor Experimental Core Analyzer Advanced Reaction Control System Advanced Phase Shifter Experimental Utility Shielding Experimental Powered Armor Advanced Hacking Suite System Mapper Deep Network Scanner System Shield > --- WEAPON ----------- Hypervelocity Railgun Hypervelocity Railgun Hypervelocity Railgun > --- INVENTORY -------- Advanced Coolant Injector Improved Energy Well Experimental Terrain Scanner Precision Energy Filter Advanced Weapon Cycler Experimental Transmission Jammer Experimental Cloaking Device Experimental Propulsion Shielding Experimental Utility Shielding Experimental Weapon Shielding EM Dispersion Field Advanced Force Field Deep Network Scanner Relay Coupler [NC] System Purifier Transdimensional Reconstructor Core Regenerator Integrated Reactor Enhanced Nova Cannon Potential Cannon AWS/Autocannon Mini Smartbomb Launcher Guided Remote Datajack [Rating: 180] Favorites ----------- Power Micro Fission Core Engine Improved Deuterium Engine Power Core Micro Fission Core Reactor Quantum Reactor Propulsion Combat Gravmag System Treads Centrium Heavy Treads Leg Makeshift Leg Wheel Wheel Hover Unit Combat Gravmag System Utility Large Storage Unit Device Advanced Heat Sink Storage Large Storage Unit Processor Experimental Terrain Scan Processor Hackware System Mapper Protection Improved Medium Armor Plating Weapon Gauss Cannon Energy Gun Advanced Variable Charge Gun Energy Cannon Heavy Ion Cannon Ballistic Gun Improved KE Penetrator Ballistic Cannon Gauss Cannon Launcher Mini Smartbomb Launcher Special Weapon Improved Remote Datajack Piercing Weapon Spear Build | -11 -10 -10 -10 -9 -8 -7 -7 -7 -7 -6 -6 -6 -6 -6 -5 -5 -5 -5 -5 -5 -4 -4 -4 -4 -3 -3 -3 -3 -3 -3 -2 -1 ------- Run | Scr Mat Min Exi Min Mat Fac Low Low Zio Pro Fac Low Low Dat Pro Fac Ext Cet Arc Hub Fac Upp Upp War Pro Res Gar Res Arm Lab Res Acc Slots Evolved 18 | . . . . . 4 2 . . . . 2 . . . . 2 . . . . 2 . . . . 2 . . . . 2 2 Power 1 | . . . . . . . . . . . . . . . . . . . . . 1 . . . . . . . . . . . Propulsion 3 | . . . . . . . . . . . . . . . . 2 . . . . . . . . . . . . . . . 1 Utility 13 | . . . . . 4 2 . . . . 1 . . . . . . . . . 1 . . . . 2 . . . . 2 1 Weapon 1 | . . . . . . . . . . . 1 . . . . . . . . . . . . . . . . . . . . . Parts Attached 498 | 6 1 . 2 . 22 26 3 20 3 1 12 5 3 10 8 22 22 13 7 12 49 7 3 10 6 41 17 47 81 6 23 10 Power 34 | 1 . . . . 2 3 1 2 . . . . . . 2 1 . 1 . . 2 . . . 2 3 . 2 9 . 3 . Engine 9 | 1 . . . . 2 1 1 1 . . . . . . 2 . . . . . . . . . 1 . . . . . . . Core 10 | . . . . . . 2 . 1 . . . . . . . 1 . . . . 1 . . . . 1 . 1 3 . . . Reactor 15 | . . . . . . . . . . . . . . . . . . 1 . . 1 . . . 1 2 . 1 6 . 3 . Propulsion 93 | 2 . . . . 5 3 1 3 2 . 2 2 . . . 6 5 2 . . 16 . . . . 9 2 7 24 . 1 1 Treads 22 | . . . . . 4 2 1 1 . . . 2 . . . . . 2 . . 4 . . . . 3 1 . 2 . . . Leg 10 | . . . . . . . . . 2 . 2 . . . . 2 4 . . . . . . . . . . . . . . . Wheel 6 | 2 . . . . 1 1 . 2 . . . . . . . . . . . . . . . . . . . . . . . . Hover 55 | . . . . . . . . . . . . . . . . 4 1 . . . 12 . . . . 6 1 7 22 . 1 1 Flight . | . . . . . . . . . . . . . . . . . . . . . . . . . . . . . . . . . Utility 193 | 1 1 . 2 . 6 9 . 7 1 . 7 2 2 6 3 9 6 1 6 9 16 3 2 7 3 17 7 14 27 1 12 6 Device 91 | . . . . . 1 2 . 2 . . 3 1 2 5 2 1 1 . 3 7 7 . 1 5 2 9 3 8 15 . 8 3 Storage 19 | 1 1 . 2 . 1 2 . 1 . . 2 . . 1 . 2 1 . 1 . 1 . . . . 1 1 . . . 1 . Processor 4 | . . . . . . . . . . . . 1 . . . . . . . . . . . 2 . . . 1 . . . . Hackware 11 | . . . . . 1 . . . . . 1 . . . . 4 . . . . 1 . . . . 2 . . 1 . . 1 Protection 68 | . . . . . 3 5 . 4 1 . 1 . . . 1 2 4 1 2 2 7 3 1 . 1 5 3 5 11 1 3 2 Artifact . | . . . . . . . . . . . . . . . . . . . . . . . . . . . . . . . . . Weapon 178 | 2 . . . . 9 11 1 8 . 1 3 1 1 4 3 6 11 9 1 3 15 4 1 3 1 12 8 24 21 5 7 3 Energy Gun 33 | . . . . . 2 5 . 1 . . . . . . . 1 3 1 . . 7 1 . 1 . 3 2 2 1 1 1 1 Energy Cannon 35 | . . . . . 1 4 1 3 . . . . 1 1 1 2 2 1 . 2 . . . . . 2 1 2 4 1 4 2 Ballistic Gun 34 | 2 . . . . 6 2 . 2 . . . . . . . . . 5 . . 3 . . . . . . . 11 2 1 . Ballistic Cannon 47 | . . . . . . . . 1 . 1 2 . . 2 1 3 6 . 1 1 5 1 1 1 . 5 2 10 4 . . . Launcher 23 | . . . . . . . . 1 . . 1 1 . . 1 . . 2 . . . 2 . . 1 2 3 7 1 . 1 . Special Weapon 5 | . . . . . . . . . . . . . . . . . . . . . . . . 1 . . . 3 . 1 . . Impact Weapon . | . . . . . . . . . . . . . . . . . . . . . . . . . . . . . . . . . Slashing Weapon . | . . . . . . . . . . . . . . . . . . . . . . . . . . . . . . . . . Piercing Weapon 1 | . . . . . . . . . . . . . . 1 . . . . . . . . . . . . . . . . . . Special Melee Weapon . | . . . . . . . . . . . . . . . . . . . . . . . . . . . . . . . . . Unidentified Prototypes 26 | . . . . . . 1 . . . . 4 . . 1 . 2 1 3 . . 2 . 1 3 . 1 . . 3 4 . . Parts Lost 76 | . . . . . 9 15 . 18 . . 1 2 1 . 4 . 3 2 1 2 . . . . 1 5 . 1 5 . 6 . Power 13 | . . . . . 1 3 . 2 . . . . . . . . . . . . . . . . 1 2 . . 2 . 2 . Propulsion 12 | . . . . . 2 2 . 4 . . 1 1 . . . . 1 . . . . . . . . . . . . . 1 . Utility 19 | . . . . . 1 4 . 5 . . . . 1 . 3 . 1 . . 1 . . . . . 1 . . 1 . 1 . Weapon 32 | . . . . . 5 6 . 7 . . . 1 . . 1 . 1 2 1 1 . . . . . 2 . 1 2 . 2 . Highest Loss Streak 9 | . . . . . 3 7 . 9 . . 1 2 1 . 3 . 2 2 1 1 . . . . 1 2 . 1 3 . 2 . Average Slot Usage (%) 92 | . 87 100 100 100 88 95 100 90 98 100 99 96 95 79 96 93 89 95 82 85 85 94 94 93 92 93 93 98 93 98 89 86 Engine 1 | . 14 14 14 14 8 4 7 2 . . . . . . 2 3 . . . . . . . . 2 1 . . . . . . Core 3 | . . . . . . 2 . 3 7 7 6 6 6 6 3 1 5 3 . . 4 5 5 5 1 2 4 6 2 . . . Reactor 1 | . . . . . . . . . . . . . . . . . . 1 5 5 2 . . . 3 3 4 1 4 9 5 8 Treads 4 | . . . . . 12 12 13 6 . . . 5 13 13 13 6 . 2 11 11 5 . . . . . 3 . 1 . . . Leg 2 | . . . . . . . . . 6 15 13 6 . . . 6 4 17 . . . . . . . . . . . . . . Wheel 1 | . 28 28 28 28 5 1 1 4 6 . . . . . . . . . . . . . . . . . . . . . . . Hover 6 | . . . . . . . . . . . . . . . . 9 16 . . . 10 21 21 21 21 17 9 17 15 19 16 15 Device 5 | . . . . . 2 7 7 5 7 7 6 5 11 10 11 1 2 . 4 5 4 . . 3 4 4 1 5 2 . 10 11 Storage 25 | . 16 28 28 28 24 26 30 34 36 30 28 26 26 30 33 26 24 29 23 23 20 21 21 21 21 19 20 19 19 19 19 17 Processor 1 | . . . . . . . . . . . . . . . . . . . . . . . . 4 5 4 4 8 9 9 8 8 Hackware 12 | . . . . . 6 7 7 7 7 7 10 13 13 13 11 19 14 11 11 11 14 15 15 15 15 20 23 19 17 19 15 14 Protection 8 | . . . . . 9 15 15 8 8 15 13 13 7 1 . 2 6 11 5 8 10 14 15 6 5 5 5 3 6 9 3 7 Energy Gun 1 | . . . . . 1 4 1 2 . . . . . . . . 2 7 . . 1 . . 4 1 2 1 . . . . 2 Energy Cannon 2 | . . . . . 2 4 5 4 7 1 . . 2 . 5 4 2 1 . 4 . . . . . 1 . . 1 4 1 1 Ballistic Gun 4 | . 28 28 28 28 13 5 7 4 . . . . . . . . . 4 11 11 8 10 10 2 . . . . 5 7 5 . Ballistic Cannon 4 | . . . . . . . . 2 7 12 19 16 13 . 10 7 4 . 4 . . 2 1 3 1 1 7 5 2 . . . Naked Turns . | . . . . . . . . . . . . . . . . . . . . . . . . . . . . . . . . . Heaviest Build 164 | 11 27 27 39 39 71 94 93 101 107 107 116 115 117 125 126 119 112 120 128 126 126 100 106 106 96 124 125 117 164 129 130 117 Greatest Support 160 | 32 32 32 32 32 44 44 42 40 40 40 48 48 48 48 48 82 82 160 160 160 160 100 100 100 100 100 100 128 128 128 128 113 Greatest Overweight (x) 10 | . . . 1 1 4 4 4 10 10 2 2 3 2 2 2 2 2 2 . . 1 . 1 1 . 2 1 1 1 1 1 1 Average Overweight (x) 1 | . . . . 1 1 1 2 6 8 2 2 2 2 1 2 . . . . . . . . . . . . . . . . . Largest Inventory Capacity 34 | 6 12 12 16 16 22 28 28 28 28 28 28 28 28 34 34 34 28 28 28 28 28 28 28 28 28 28 28 28 28 28 28 28 Average Capacity 27 | 5 7 12 12 16 20 24 28 28 28 28 28 28 28 32 34 31 28 28 28 28 27 28 28 28 28 28 28 28 28 28 28 28 Most Carried 34 | 4 7 7 13 12 22 24 28 28 28 28 28 28 28 33 34 34 28 28 28 28 28 28 28 28 28 28 28 28 28 28 28 28 Average Carried 26 | 2 4 7 9 12 18 21 25 20 25 27 27 27 27 28 32 29 26 27 27 27 27 27 27 27 27 27 26 27 27 27 26 26 Final Capacity 34 | 6 12 12 16 16 22 28 28 28 28 28 28 28 28 34 34 28 28 28 28 28 28 28 28 28 28 28 28 28 28 28 28 28 Final Carried 34 | 4 7 7 12 12 21 24 28 19 28 28 28 28 28 32 34 26 28 28 28 28 28 28 28 27 28 28 28 28 28 28 28 26 Class Distribution -------------------- 31% | Hauler-Mutant 22% | Wizard-Mutant 10% | Hacker-Mutant 7% | Hacker-Skirmisher 5% | Scavenger-Mutant 5% | Wizard-Scout 5% | Hauler-Tank 3% | Wizard-Tank 3% | Mutant Dominant Class ---------------- Mutant | -10/Materials Mutant | -10/Mines Mutant | -10/Exiles Mutant | -9/Mines Hauler-Mutant | -8/Materials Hauler-Mutant | -7/Factory Hauler-Mutant | -7/Lower Caves Hauler-Mutant | -7/Lower Caves Hauler-Mutant | -7/Zion Hauler-Mutant | -6/Proximity Caves Hauler-Tank | -6/Factory Hauler-Mutant | -6/Lower Caves Hauler-Mutant | -6/Lower Caves Hauler-Mutant | -6/Data Miner Hauler-Mutant | -5/Proximity Caves Hacker-Mutant | -5/Factory Hacker-Mutant | -5/Extension Hacker-Mutant | -5/Cetus Hacker-Skirmisher | -5/Archives Scavenger-Mutant | -5/Hub_04(d) Wizard-Mutant | -4/Factory Wizard-Mutant | -4/Upper Caves Wizard-Mutant | -4/Upper Caves Wizard-Mutant | -4/Warlord Wizard-Mutant | -3/Proximity Caves Wizard-Mutant | -3/Research Wizard-Mutant | -3/Garrison Wizard-Scout | -3/Research Wizard-Mutant | -3/Armory Wizard-Mutant | -3/Lab Wizard-Scout | -2/Research Wizard-Scout | -1/Access Resources | -11 -10 -10 -10 -9 -8 -7 -7 -7 -7 -6 -6 -6 -6 -6 -5 -5 -5 -5 -5 -5 -4 -4 -4 -4 -3 -3 -3 -3 -3 -3 -2 -1 ----------- Run | Scr Mat Min Exi Min Mat Fac Low Low Zio Pro Fac Low Low Dat Pro Fac Ext Cet Arc Hub Fac Upp Upp War Pro Res Gar Res Arm Lab Res Acc Matter Collected 12800 | 172 45 . 105 . 561 362 54 365 37 58 674 140 122 440 275 418 874 211 279 675 821 560 337 60 85 993 76 1401 1837 180 583 . Remotely . | . . . . . . . . . . . . . . . . . . . . . . . . . . . . . . . . . Salvage Created 14003 | . 45 . . . 1101 770 104 814 . . 248 70 48 230 162 346 323 585 367 1612 975 332 347 . 177 1405 174 1501 1547 . 671 49 Parts 671 | . 6 . . . 53 44 4 25 . . 10 5 7 6 3 15 20 20 11 78 62 15 12 . 7 79 12 61 81 . 34 1 Haulers Intercepted 6 | . . . . . 1 . . . . . . . . . . . . . . 2 . . 1 . . 1 . . . . 1 . Recyclers Shooed 7 | . 1 . . . 1 . . . . . . . . . . . 1 . . . 1 . . . . 2 . . . . 1 . Parts Field Recycled . | . . . . . . . . . . . . . . . . . . . . . . . . . . . . . . . . . Retrieved Matter . | . . . . . . . . . . . . . . . . . . . . . . . . . . . . . . . . . Parts Self-Destructed 147 | . . . . . . . 4 26 3 16 . 5 7 . 1 . . . . . . 8 9 67 1 . . . . . . . Prevented 6 | . . . . . . . . 1 . . . . . . . . . . . . . 2 1 2 . . . . . . . . Kills | -11 -10 -10 -10 -9 -8 -7 -7 -7 -7 -6 -6 -6 -6 -6 -5 -5 -5 -5 -5 -5 -4 -4 -4 -4 -3 -3 -3 -3 -3 -3 -2 -1 ------- Run | Scr Mat Min Exi Min Mat Fac Low Low Zio Pro Fac Low Low Dat Pro Fac Ext Cet Arc Hub Fac Upp Upp War Pro Res Gar Res Arm Lab Res Acc Combat Hostiles Destroyed 255 | . 2 . . . 18 12 4 19 . . 8 7 1 4 5 6 6 10 4 12 13 12 13 . 7 29 6 19 24 . 14 . Guns 78 | . 2 . . . 14 8 2 15 . . . . . . . . . . 2 9 11 . . . . . . . 13 . 2 . Cannons 79 | . . . . . 3 2 2 4 . . 5 5 1 . 1 6 5 1 2 2 2 . 1 . . 13 2 11 7 . 4 . AOE 86 | . . . . . 1 1 . . . . 3 2 . 1 4 . . 4 . 1 . 12 12 . 7 15 4 8 3 . 8 . Classes Destroyed 18 | . 2 . . . 8 2 . . . . 1 . . . 1 . . . . . . . . . . 1 . . 2 . 1 . Worker 18 | . . . . . . . . . . . 1 . . . . . . . . 11 1 . . . . . . 3 . . 2 . Builder 11 | . . . . . 1 2 . . . . . . . . . . 2 . . 2 . . . . . 3 . 1 . . . . Tunneler 3 | . . . . . . . . . . . . . . . . . . . . . . . . . . 2 . 1 . . . . Hauler 6 | . . . . . 1 . . . . . . . . . . . . . . 2 . . 1 . . 1 . . . . 1 . Recycler 9 | . . . . . 1 1 . . . . . . . . . . . . . 2 1 . . . . . . 3 . . 1 . Operator 3 | . 1 . . . . . . . . . . . . . . . . . . . . . . . . . . . 2 . . . Drone 1 | . . . . . . . . . . . . . . . . . . . . . . . . . . . . . . . 1 . Watcher 10 | . . . . . 2 . . . . . . . . . . . . 1 . 3 2 . . . . . . . 1 . . 1 Swarmer 72 | . 2 . . . . 1 4 6 . . . 4 . . . . . 4 . . . 9 8 . 3 12 4 6 5 . 4 . Saboteur 1 | . . . . . . . . . . . . . . . . . . . . . . . . . . . . . 1 . . . Grunt 64 | . . . . . 12 5 . 11 . . 3 . . . 4 1 1 . . 6 1 . 5 . 4 3 . 3 5 . . . Brawler 2 | . . . . . 1 . . 1 . . . . . . . . . . . . . . . . . . . . . . . . Duelist 4 | . . . . . . 1 . . . . 2 . . . . . 1 . . . . . . . . . . . . . . . Sentry 38 | . . . . . 2 2 . 1 . . 1 . . . . . 1 . 4 3 4 . . . . 5 . 8 5 . 2 . Demolisher 1 | . . . . . . . . . . . . . . . . . . . . . . . . . . . . . 1 . . . Hunter 26 | . . . . . 3 . . . . . . 2 1 . . 1 1 . . 1 . 2 . . . 4 2 . 4 . 5 . Programmer 32 | . . . . . . 3 . . . . 2 1 . . . 4 . . . 2 8 . . . . 5 . 2 3 . 2 . Behemoth 4 | . . . . . . . . . . . . . . . 1 . 2 . . . . 1 . . . . . . . . . . Cetus Guard 6 | . . . . . . . . . . . . . . . . . . 6 . . . . . . . . . . . . . . Enhanced Grunt 4 | . . . . . . . . . . . . . . 4 . . . . . . . . . . . . . . . . . . Guerrilla 1 | . . . . . . . . . . . . . . . . . . 1 . . . . . . . . . . . . . . Best Kill Streak 20 | . 3 . . . 5 4 3 6 . . 5 4 1 5 4 2 1 9 1 20 2 9 8 . 4 9 4 8 6 . 7 1 Combat Bots Only 9 | . 2 . . . 5 4 3 6 . . 4 4 1 4 4 2 1 8 1 3 2 9 8 . 4 8 4 6 6 . 5 . Max Kills in Single Turn 12 | . 1 . . . 2 2 1 2 . . 2 2 1 2 3 1 1 3 1 12 1 3 3 . 2 4 3 3 2 . 5 1 Gunslinging 1 | . . . . . . . . . . . . . . . . . . . . . . . . . . . . . 1 . 1 . Exploded 4 | . . . . . 1 1 . . . . 2 1 . 1 3 . . 3 . 1 . 3 3 . 2 4 3 3 2 . 3 . Melee . | . . . . . . . . . . . . . . . . . . . . . . . . . . . . . . . . . Uniques/NPCs Destroyed 1 | . . . . . . . . . . . . . . 1 . . . . . . . . . . . . . . . . . . Data Miner (-6/Data Miner) Combat | -11 -10 -10 -10 -9 -8 -7 -7 -7 -7 -6 -6 -6 -6 -6 -5 -5 -5 -5 -5 -5 -4 -4 -4 -4 -3 -3 -3 -3 -3 -3 -2 -1 -------- Run | Scr Mat Min Exi Min Mat Fac Low Low Zio Pro Fac Low Low Dat Pro Fac Ext Cet Arc Hub Fac Upp Upp War Pro Res Gar Res Arm Lab Res Acc Damage Taken 20959 | . 219 . . . 1628 1859 192 2564 . 85 310 751 60 . 482 452 1019 423 454 1141 776 676 88 . 384 2008 285 707 2339 . 2057 . Core 2379 | . 59 . . . 121 268 26 352 . 12 26 71 23 . 108 18 108 . . 78 67 14 . . . 206 23 121 445 . 233 . Absorbed by Shields 152 | . . . . . . . . . . . . . . . 51 . 9 . . . . . . . . . 92 . . . . . Reduced by Siege Mode 221 | . . . . . . . . . . . . . . . . . . . 54 56 35 . . . . 53 . . 23 . . . Core Remaining (%) 72 | 100 . . . 76 78 . . . . 6 . . . . 73 . . . . 79 . . . . 92 . . . . 38 83 100 Volleys Fired 924 | . 16 . . . 104 85 6 58 . 4 17 18 1 . 14 34 66 17 15 50 58 33 11 3 10 91 18 49 95 3 34 14 Largest 3 | . 2 . . . 2 2 2 2 . 2 3 3 2 . 3 3 3 3 3 2 3 1 3 1 1 3 3 3 3 1 3 1 Hottest 240 | . 40 . . . 85 110 93 113 . 96 144 144 96 . 203 203 225 211 131 90 131 80 131 80 80 197 240 188 188 120 200 120 Shots Fired 1571 | . 32 . . . 189 122 12 114 . 8 45 33 2 . 28 54 102 30 44 83 101 33 17 3 10 118 24 92 204 3 54 14 Gun 784 | . 32 . . . 159 66 6 76 . . . . . . . . 14 19 30 66 77 12 6 3 . 31 11 6 134 . 30 6 Cannon 697 | . . . . . 30 56 6 37 . 8 42 28 2 . 25 54 88 4 14 17 24 . 3 . . 79 11 76 68 3 14 8 Launcher 90 | . . . . . . . . 1 . . 3 5 . . 3 . . 7 . . . 21 8 . 10 8 2 10 2 . 10 . Special . | . . . . . . . . . . . . . . . . . . . . . . . . . . . . . . . . . Kinetic 980 | . 32 . . . 134 36 6 68 . 8 42 28 2 . 14 27 51 . 44 69 84 . 9 . . 56 10 71 159 . 30 . Thermal 353 | . . . . . 34 46 6 45 . . . . . . 11 27 38 . . 14 17 . . 3 . 40 11 6 30 3 14 8 Explosive 84 | . . . . . . . . . . . 3 5 . . 3 . . 2 . . . 21 8 . 10 8 2 10 2 . 10 . Electromagnetic 154 | . . . . . 21 40 . 1 . . . . . . . . 13 28 . . . 12 . . . 14 1 5 13 . . 6 Robot Hit Streak 39 | . 5 . . . 17 9 3 16 . 2 8 5 2 . 14 6 10 9 39 25 13 10 19 . 7 26 16 21 11 . 9 2 Robot Miss Streak 6 | . 4 . . . 5 5 4 4 . 2 5 5 . . 2 3 4 2 1 1 1 3 1 . . 2 . 5 6 . 5 5 Penetration Max 1 | . . . . . . . . 1 . 1 . . . . . . . . . 1 1 . . . . 1 . . 1 . . . Secondary Targets 8 | . 1 . . . 1 . . 2 . . . . . . . . . . . . . . . . . . . . 3 . 1 . Max Gunslinging Chain 1 | . 1 . . . 1 . . 1 . . . . . . . . . . . . . . . . . . . . 1 . 1 . Autonomous 22 | . . . . . . . . . . . . . . . . . . . . . . . . . . . . . 22 . . . Shots Hit Robots 910 | . 19 . . . 129 75 4 76 . 4 25 20 1 1 18 15 48 22 39 55 63 16 11 . 5 70 9 46 116 . 21 2 Core Hits 603 | . 8 . . . 53 47 4 38 . 2 18 11 1 13 11 7 18 21 10 48 32 25 23 . 14 61 9 37 59 . 33 . Critical Hits 215 | . . . . . 2 . . 4 . . 3 2 1 . 5 8 23 . 15 9 24 . 3 . . 32 4 25 47 . 8 . Critical Kills 75 | . . . . . 2 . . 1 . . 1 . 1 . . 3 1 . 4 3 12 . 1 . . 12 2 14 14 . 4 . Critical Parts Destroyed 90 | . . . . . . . . 3 . . 2 2 . . 2 5 14 . 4 3 10 . 2 . . 15 2 5 18 . 3 . Melee Attacks 1 | . . . . . . . . . . . . . . 1 . . . . . . . . . . . . . . . . . . Impact . | . . . . . . . . . . . . . . . . . . . . . . . . . . . . . . . . . Slashing . | . . . . . . . . . . . . . . . . . . . . . . . . . . . . . . . . . Piercing 1 | . . . . . . . . . . . . . . 1 . . . . . . . . . . . . . . . . . . Sneak Attacks 1 | . . . . . . . . . . . . . . 1 . . . . . . . . . . . . . . . . . . Combat Hostiles . | . . . . . . . . . . . . . . . . . . . . . . . . . . . . . . . . . Follow-up Attacks . | . . . . . . . . . . . . . . . . . . . . . . . . . . . . . . . . . Damage Inflicted 38944 | . 136 . . . 1931 1751 179 1898 . 183 1155 1061 17 842 1048 416 1619 1474 893 3865 1715 2773 2267 . 1531 3624 465 2221 2884 . 2862 134 Guns 8822 | . 136 . . . 1250 938 44 1236 . . . . . . . . 172 378 690 1208 1522 153 163 . . 54 . . 674 . 112 92 Cannons 11620 | . . . . . 563 691 135 564 . 183 600 428 17 . 528 416 1447 103 199 248 193 . 34 . . 1679 69 693 1961 . 827 42 Explosions 18385 | . . . . . 118 122 . 86 . . 555 633 . 741 520 . . 993 . 2409 . 2620 2070 . 1531 1891 396 1528 249 . 1923 . Melee 101 | . . . . . . . . . . . . . . 101 . . . . . . . . . . . . . . . . . . Ramming 16 | . . . . . . . . 12 . . . . . . . . . . 4 . . . . . . . . . . . . . Kinetic 13391 | . 136 . . . 1082 620 44 1091 . 183 600 428 17 . 278 211 767 . 889 1221 1682 . 197 . . 848 69 521 2395 . 112 . Thermal 5522 | . . . . . 711 704 135 709 . . . . . . 250 205 680 83 . 235 33 . . . . 581 . . 23 . 1131 42 Explosive 14054 | . . . . . . . . . . . 555 633 . . 520 . . 442 . . . 2620 2070 . 1531 1891 396 1528 249 . 1619 . Electromagnetic 5860 | . . . . . 138 427 . 86 . . . . . 741 . . 172 949 . 2409 . 153 . . . 304 . 172 217 . . 92 Impact . | . . . . . . . . . . . . . . . . . . . . . . . . . . . . . . . . . Slashing . | . . . . . . . . . . . . . . . . . . . . . . . . . . . . . . . . . Piercing 101 | . . . . . . . . . . . . . . 101 . . . . . . . . . . . . . . . . . . Highest Corruption 7 | . . . . . . 1 1 4 4 . . 2 2 2 2 2 7 7 7 4 3 . . 5 . 6 . 1 6 6 . . Average Corruption 2 | . . . . . . 1 1 3 4 . . 1 2 2 2 2 4 7 4 2 1 . . 4 . 3 . 1 2 6 . . Corruption Purged 22 | . . . . . . . . . . . . . . . . . . . 7 . 5 . . . . 9 . 1 . . . . Effects 173 | . . . . . . 4 1 12 2 . . 5 7 4 4 6 22 15 30 9 12 . . . . 21 . 4 9 6 . . Message Errors 49 | . . . . . . 1 1 5 . . . 2 2 2 3 2 4 4 8 4 4 . . . . 2 . 1 3 1 . . Matter Fused 25 | . . . . . . . . 1 1 . . . . . . . 2 3 9 . 2 . . . . 2 . . 2 3 . . Heat Flow Errors 17 | . . . . . . . . 2 1 . . . 1 . . 1 4 2 2 . . . . . . 3 . . 1 . . . Energy Discharges 24 | . . . . . . 1 . 2 . . . 1 2 1 . 2 2 1 3 1 2 . . . . 5 . 1 . . . . Parts Rejected 2 | . . . . . . . . . . . . . . . . . 1 1 . . . . . . . . . . . . . . Data Loss (minor) 24 | . . . . . . 1 . . . . . 1 2 1 . 1 . 1 3 2 3 . . . . 3 . 2 2 2 . . Data Loss (major) 3 | . . . . . . . . . . . . . . . . . 1 1 1 . . . . . . . . . . . . . Misfires 4 | . . . . . . . . . . . . . . . . . . . 1 . . . . . . 3 . . . . . . Targeting Errors 21 | . . . . . . 1 . 1 . . . 1 . . 1 . 6 2 3 2 1 . . . . 2 . . 1 . . . Weapon Failures 4 | . . . . . . . . 1 . . . . . . . . 2 . . . . . . . . 1 . . . . . . Overload Shots 2 | . . . . . . . . . . . . . . . . . 1 . . . . . . . . . 1 . . . . . Overflow Damage 1347 | . . . . . . 69 2 13 . . 23 14 . 1 8 . 31 57 . 203 . 109 166 . 108 77 . 77 356 . 31 2 Projectiles 544 | . . . . . . 69 2 13 . . . 3 . . . . 31 . . 7 . . . . . 44 . 12 356 . 5 2 Explosions 803 | . . . . . . . . . . . 23 11 . 1 8 . . 57 . 196 . 109 166 . 108 33 . 65 . . 26 . Melee . | . . . . . . . . . . . . . . . . . . . . . . . . . . . . . . . . . Knockbacks 42 | . . . . . . . . . . 4 5 2 . . . 6 4 . . . 1 . . . . 6 1 2 11 . . . Impact . | . . . . . . . . . . . . . . . . . . . . . . . . . . . . . . . . . Kinetic 40 | . . . . . . . . . . 3 4 2 . . . 6 4 . . . 1 . . . . 6 1 2 11 . . . Secondary 2 | . . . . . . . . . . 1 1 . . . . . . . . . . . . . . . . . . . . . Self-Inflicted Damage 709 | . . . . . 24 52 . 3 . . . 30 . . . 160 . . . 189 . 107 . . 130 . . 14 . . . . Shots 15 | . . . . . 1 1 . . . . . 3 . . . 2 . . . 2 . 2 . . 3 . . 1 . . . . Rammed 3 | . . . . . . . . 2 . . . . . . . . . . 1 . . . . . . . . . . . . . Targets Rammed 3 | . . . . . . . . 2 . . . . . . . . . . 1 . . . . . . . . . . . . . Kicked . | . . . . . . . . . . . . . . . . . . . . . . . . . . . . . . . . . Crushed . | . . . . . . . . . . . . . . . . . . . . . . . . . . . . . . . . . Highest Temperature 413 | . . . . . 204 117 . 190 186 90 151 42 224 . 275 252 413 368 267 76 174 247 136 90 237 283 204 360 378 80 222 184 Average Temperature 82 | . . . . . 72 30 . 45 102 38 49 21 121 . 100 72 107 128 89 16 41 87 50 47 126 100 58 84 99 38 99 70 Received Heat Transfer 3185 | . . . . . 720 435 . 756 . 18 81 . . . 95 18 36 18 45 228 63 . 12 . 27 183 . 18 369 . 63 . Effects 8 | . . . . . . . . . . . . . . . . . 5 1 . . . . . . . . . 1 1 . . . Shutdowns 3 | . . . . . . . . . . . . . . . . . 2 . . . . . . . . . . . 1 . . . Energy Bleed 2 | . . . . . . . . . . . . . . . . . . 1 . . . . . . . . . 1 . . . . Interference 3 | . . . . . . . . . . . . . . . . . 3 . . . . . . . . . . . . . . . Siege Activations 21 | . . . . . . . . . . . . . . . . . . . 4 6 5 . . . . 4 1 . 1 . . . Total Turns 343 | . . . . . . . . . . . . . . . . . . . 55 72 58 . . . . 116 21 . 21 . . . Longest Duration 54 | . . . . . . . . . . . . . . . . . . . 19 22 13 . . . . 54 21 . 21 . . . Robots Corrupted 17 | . . . . . . 1 . . . . . . . 3 . . 1 5 . 2 . 1 . . . 1 . 1 1 . . 1 Combat Hostiles 13 | . . . . . . 1 . . . . . . . 3 . . 1 5 . . . 1 . . . 1 . . 1 . . . Parts Fried 26 | . . . . . . 1 . . . . . . . 2 . . . 9 . 5 . 1 . . . 2 . 2 2 . . 2 Impact Corruptions . | . . . . . . . . . . . . . . . . . . . . . . . . . . . . . . . . . Robots Melted . | . . . . . . . . . . . . . . . . . . . . . . . . . . . . . . . . . Combat Hostiles . | . . . . . . . . . . . . . . . . . . . . . . . . . . . . . . . . . Parts Melted 9 | . . . . . . 1 . . . . . . . . . . 3 . . . . . . . . 4 . . . . 1 . Heat Transferred 5450 | . . . . . 951 779 185 1217 . . . . . . 350 175 425 100 . 125 37 . . . . 444 . . 37 . 588 37 Parts Sabotaged 9 | . . . . . . . . . . . . . . . . . . . . . . . . . . . . . 9 . . . Parts Stolen . | . . . . . . . . . . . . . . . . . . . . . . . . . . . . . . . . . Parts Stripped . | . . . . . . . . . . . . . . . . . . . . . . . . . . . . . . . . . Power Chain Reactions 5 | . . . . . 2 1 . . . . . . . . . . . 1 . 1 . . . . . . . . . . . . Missiles Intercepted . | . . . . . . . . . . . . . . . . . . . . . . . . . . . . . . . . . Alert | -11 -10 -10 -10 -9 -8 -7 -7 -7 -7 -6 -6 -6 -6 -6 -5 -5 -5 -5 -5 -5 -4 -4 -4 -4 -3 -3 -3 -3 -3 -3 -2 -1 ------- Run | Scr Mat Min Exi Min Mat Fac Low Low Zio Pro Fac Low Low Dat Pro Fac Ext Cet Arc Hub Fac Upp Upp War Pro Res Gar Res Arm Lab Res Acc Peak Influence 889 | . 83 31 . . 257 124 . . . . 177 . . . . 535 343 212 211 889 612 . . . . 534 364 428 547 . 533 249 Average Influence 136 | . 51 31 . . 118 68 . . . . 51 . . . . 124 109 144 49 55 268 . . . . 172 288 128 162 . 215 186 Maximum Alert Level 3 | . . . . . 1 . . . . . . . . . . 2 1 1 1 3 2 . . . . 2 1 2 2 . 2 1 Low Security (%) 73 | 100 100 100 . 100 92 100 . . . . 100 . . . . 88 82 68 82 98 39 . . . . 60 6 69 69 . 44 39 Level 1 21 | . . . . . 7 . . . . . . . . . . 5 17 31 17 . 40 . . . . 33 93 23 27 . 48 60 Level 2 4 | . . . . . . . . . . . . . . . . 6 . . . . 20 . . . . 6 . 7 3 . 6 . Level 3 . | . . . . . . . . . . . . . . . . . . . . . . . . . . . . . . . . . Level 4 . | . . . . . . . . . . . . . . . . . . . . . . . . . . . . . . . . . Level 5 . | . . . . . . . . . . . . . . . . . . . . . . . . . . . . . . . . . High Security . | . . . . . . . . . . . . . . . . . . . . . . . . . . . . . . . . . Max Security . | . . . . . . . . . . . . . . . . . . . . . . . . . . . . . . . . . Squads Dispatched 62 | . . . . . 3 6 . 1 . . 3 . 1 . . 6 5 . . 4 9 . . . . 9 . 7 4 . 3 1 Investigation 18 | . . . . . 2 1 . . . . 2 . 1 . . 3 2 . . 1 1 . . . . 2 . 2 1 . . . Extermination 22 | . . . . . . 3 . . . . 1 . . . . 2 . . . 1 5 . . . . 3 . 5 2 . . . Reinforcement 16 | . . . . . 1 2 . . . . . . . . . 1 3 . . 2 . . . . . 2 . . 1 . 3 1 Assault 1 | . . . . . . . . 1 . . . . . . . . . . . . . . . . . . . . . . . . Garrison 5 | . . . . . . . . . . . . . . . . . . . . . 3 . . . . 2 . . . . . . Intercept . | . . . . . . . . . . . . . . . . . . . . . . . . . . . . . . . . . Construction Impeded 7 | . . . . . . 2 . . . . . . . . . 1 1 . . . . . . . . 1 . . . . 1 1 Haulers Reinforced 2 | . . . . . . . . . . . . . . . . . . . . 1 . . . . . . . . . . 1 . Stealth | -11 -10 -10 -10 -9 -8 -7 -7 -7 -7 -6 -6 -6 -6 -6 -5 -5 -5 -5 -5 -5 -4 -4 -4 -4 -3 -3 -3 -3 -3 -3 -2 -1 --------- Run | Scr Mat Min Exi Min Mat Fac Low Low Zio Pro Fac Low Low Dat Pro Fac Ext Cet Arc Hub Fac Upp Upp War Pro Res Gar Res Arm Lab Res Acc Distress Signals 27 | . 2 . . . 5 . . . . . . . . . . . . 2 . 1 . . . . . 2 . 1 5 . 9 . Communications Jammed 57 | . . . . . . . . . . . . . . . . . . . . 40 . . . . . 3 . 2 8 . 4 . Distress Signals 57 | . . . . . . . . . . . . . . . . . . . . 40 . . . . . 3 . 2 8 . 4 . Times Spotted 420 | . 6 . . . 41 18 4 30 . 11 15 7 2 . 9 6 30 12 5 33 23 14 12 . 9 42 3 25 44 . 18 1 Peak Tracking Total 16 | . 3 . . . 6 7 3 16 . 3 5 4 2 . 4 2 7 5 1 5 3 6 6 . 5 8 4 7 9 . 12 1 Tactical Retreats 44 | . . . . . 2 2 . 9 . . 3 . . . . . 1 . . 5 1 2 1 . 2 8 . 1 4 . 3 . Traps | -11 -10 -10 -10 -9 -8 -7 -7 -7 -7 -6 -6 -6 -6 -6 -5 -5 -5 -5 -5 -5 -4 -4 -4 -4 -3 -3 -3 -3 -3 -3 -2 -1 ------- Run | Scr Mat Min Exi Min Mat Fac Low Low Zio Pro Fac Low Low Dat Pro Fac Ext Cet Arc Hub Fac Upp Upp War Pro Res Gar Res Arm Lab Res Acc Traps Triggered 30 | . . . . . 1 3 . . . . . . . 4 . . 3 . . . 3 . . . . 3 6 . 7 . . . Indirectly 4 | . . . . . . . . . . . . . . 4 . . . . . . . . . . . . . . . . . . Trap Hack Attempts . | . . . . . . . . . . . . . . . . . . . . . . . . . . . . . . . . . Triggered . | . . . . . . . . . . . . . . . . . . . . . . . . . . . . . . . . . Disarmed 2 | . . . . . . . . . . . . . . . . . . . . . . . . . . . . . 2 . . . Reprogrammed . | . . . . . . . . . . . . . . . . . . . . . . . . . . . . . . . . . Reused 1 | . . . . . . . . . . . . . . 1 . . . . . . . . . . . . . . . . . . Traps Extracted . | . . . . . . . . . . . . . . . . . . . . . . . . . . . . . . . . . Installed 5 | . . . . . . . . . . . . . . 5 . . . . . . . . . . . . . . . . . . Triggered 20 | . . . . . . . 2 . . . . . . . 2 . . . . . . . 4 10 2 . . . . . . . Fabricated Traps 5 | . . . . . . . . . . . . . . 5 . . . . . . . . . . . . . . . . . . Machines | -11 -10 -10 -10 -9 -8 -7 -7 -7 -7 -6 -6 -6 -6 -6 -5 -5 -5 -5 -5 -5 -4 -4 -4 -4 -3 -3 -3 -3 -3 -3 -2 -1 ---------- Run | Scr Mat Min Exi Min Mat Fac Low Low Zio Pro Fac Low Low Dat Pro Fac Ext Cet Arc Hub Fac Upp Upp War Pro Res Gar Res Arm Lab Res Acc Machines Disabled 53 | . . . . . 1 . . . . . . . . 1 . 5 4 1 2 21 3 . . . . 2 1 1 8 1 2 . Max in Single Turn 12 | . . . . . 1 . . . . . . . . 1 . 4 1 . 1 12 1 . . . . 2 1 1 1 1 2 . Garrison Access 4 | . . . . . . . . . . . . . . . . 1 . . . . . . . . . . . . . . 2 1 Garrison Relay 1 | . . . . . . . . . . . . . . . . . . . . . . . . . . . 1 . . . . . Network Hub 2 | . . . . . . . . . . . . . . . . . . . . 2 . . . . . . . . . . . . Machines Sabotaged . | . . . . . . . . . . . . . . . . . . . . . . . . . . . . . . . . . Garrisons Compromised . | . . . . . . . . . . . . . . . . . . . . . . . . . . . . . . . . . Overloaded Fab Kills . | . . . . . . . . . . . . . . . . . . . . . . . . . . . . . . . . . Fab Network Shutdowns 3 | . . . . . . . . . . . . . . . . 1 . . . . 1 . . . . . . . 1 . . . Hacking | -11 -10 -10 -10 -9 -8 -7 -7 -7 -7 -6 -6 -6 -6 -6 -5 -5 -5 -5 -5 -5 -4 -4 -4 -4 -3 -3 -3 -3 -3 -3 -2 -1 --------- Run | Scr Mat Min Exi Min Mat Fac Low Low Zio Pro Fac Low Low Dat Pro Fac Ext Cet Arc Hub Fac Upp Upp War Pro Res Gar Res Arm Lab Res Acc Machines Accessed 102 | . 1 . 1 . 3 5 1 . 1 . 5 1 2 3 . 11 12 1 . 7 11 . . 2 . 7 . 9 11 . 3 5 Terminals 58 | . 1 . . . 3 4 . . . . 3 1 1 . . 6 12 1 . 7 4 . . . . 3 . 4 6 . . 2 Fabricators 13 | . . . . . . . . . . . 1 . . . . 2 . . . . 3 . . . . 1 . 2 4 . . . Repair Stations 12 | . . . . . . . . . . . 1 . . . . 2 . . . . 3 . . . . 1 . 2 1 . 1 1 Recycling Units 1 | . . . . . . . . . . . . . . . . . . . . . . . . . . 1 . . . . . . Scanalyzers 4 | . . . . . . 1 . . . . . . . . . . . . . . 1 . . . . . . 1 . . . 1 Garrison Access 5 | . . . . . . . . . . . . . . . . 1 . . . . . . . . . 1 . . . . 2 1 Total Hacks 463 | . 2 . 1 . 9 17 1 . 1 . 14 4 3 26 . 31 40 5 . 22 91 . . 2 . 41 . 84 48 . 7 14 Successful 353 | . 1 . 1 . 3 7 1 . 1 . 9 2 1 26 . 20 32 3 . 15 76 . . 2 . 33 . 63 37 . 6 14 Failed 108 | . 1 . . . 6 10 . . . . 5 2 2 . . 11 7 2 . 7 15 . . . . 8 . 20 11 . 1 . Catastrophic 9 | . . . . . 1 1 . . . . 2 . . . . . . . . . . . . . . . . 2 3 . . . Database Lockouts 3 | . . . . . . . . . . . . . . . . . 1 . . . . . . . . . . 2 . . . . Manual 182 | . 2 . 1 . 2 7 . . 8 . 8 3 2 . . 13 30 5 . 15 25 . . 1 . 7 . 32 19 . . 2 Terminals 247 | . 2 . . . 9 15 . . . . 8 4 2 . . 17 40 5 . 22 32 . . . . 22 . 34 30 . . 5 Fabricators 61 | . . . . . . . . . . . 3 . . . . 7 . . . . 18 . . . . 6 . 16 11 . . . Repair Stations 100 | . . . . . . . . . . . 3 . . . . 6 . . . . 39 . . . . 6 . 30 7 . 5 4 Recycling Units 6 | . . . . . . . . . . . . . . . . . . . . . . . . . . 6 . . . . . . Scanalyzers 11 | . . . . . . 2 . . . . . . . . . . . . . . 2 . . . . . . 4 . . . 3 Garrison Access 6 | . . . . . . . . . . . . . . . . 1 . . . . . . . . . 1 . . . . 2 2 Terminal Hacks 155 | . 1 . 1 . 3 4 1 . 1 . 2 2 1 26 . 7 24 3 . 12 18 . . 2 . 12 . 16 15 . . 4 Record 7 | . . . . . . . . . . . . 1 . 6 . . . . . . . . . . . . . . . . . . Part Schematic 25 | . . . . . . 1 . . 1 . . 1 . 12 . 3 3 . . 1 1 . . . . . . 2 . . . . Robot Schematic 5 | . . . . . . . . . . . . . . 5 . . . . . . . . . . . . . . . . . . Robot Analysis 4 | . . . . . . . . . . . . . . . . . . . . . 3 . . . . . . . 1 . . . Prototype ID Bank 9 | . . . . . . 1 . . . . . . . 3 . . . . . . 2 . . . . 1 . 1 1 . . . Open Door 17 | . . . . . . . 1 . . . . . 1 . . 1 10 . . . . . . 2 . . . . 1 . . 1 Level Access Points 5 | . . . . . 1 . . . . . . . . . . . . . . 1 . . . . . 1 . . 1 . . 1 Branch Access Points 6 | . 1 . . . 1 1 . . . . 1 . . . . . . . . . 1 . . . . . . 1 . . . . Emergency Access Points 2 | . . . . . . . . . . . . . . . . . . . . . 1 . . . . 1 . . . . . . Machine Index 4 | . . . . . . . . . . . . . . . . 1 . . . 1 1 . . . . 1 . . . . . . Terminal Index 1 | . . . . . . . . . . . . . . . . . 1 . . . . . . . . . . . . . . . Fabricator Index 2 | . . . . . . . . . . . . . . . . . . . . . 1 . . . . . . 1 . . . . Scanalyzer Index 1 | . . . . . . . . . . . . . . . . . . . . . 1 . . . . . . . . . . . Alert Level 1 | . . . . . . . . . . . . . . . . . . . . . . . . . . . . 1 . . . . Unreport Threat 28 | . . . . . . . . . . . . . . . . . 6 3 . 3 3 . . . . 4 . 3 4 . . 2 Locate Traps 12 | . . . . . 1 . . . . . 1 . . . . . 1 . . 1 2 . . . . 1 . 2 3 . . . Disarm Traps 2 | . . . . . . . . . . . . . . . . . . . . . . . . . . . . . 2 . . . Recall Investigation 5 | . . . . . . . . . . . . . . . . 2 1 . . . . . . . . . . 1 1 . . . Recall Extermination 5 | . . . . . . . . . . . . . . . . . . . . . 1 . . . . 1 . 3 . . . . Recall Reinforcements 3 | . . . . . . . . . . . . . . . . . 1 . . 2 . . . . . . . . . . . . Hauler Manifests 3 | . . . . . . 1 . . . . . . . . . . . . . . . . . . . 1 . 1 . . . . Registered Prototypes 1 | . . . . . . . . . . . . . . . . . . . . . . . . . . 1 . . . . . . Zone Layout 6 | . . . . . . . . . . . . . . . . . 1 . . 3 1 . . . . . . . 1 . . . EX-Prototype ID Bank 1 | . . . 1 . . . . . . . . . . . . . . . . . . . . . . . . . . . . . Fabricator Hacks 48 | . . . . . . . . . . . 2 . . . . 6 . . . . 13 . . . . 5 . 12 10 . . . Network Status 4 | . . . . . . . . . . . . . . . . . . . . . 3 . . . . . . 1 . . . . Load Schematic 20 | . . . . . . . . . . . 1 . . . . 3 . . . . 5 . . . . 2 . 4 5 . . . Build 24 | . . . . . . . . . . . 1 . . . . 3 . . . . 5 . . . . 3 . 7 5 . . . Repair Station Hacks 90 | . . . . . . . . . . . 2 . . . . 5 . . . . 37 . . . . 6 . 26 6 . 4 4 Scan Component 47 | . . . . . . . . . . . 1 . . . . 3 . . . . 19 . . . . 3 . 14 3 . 2 2 Repair 43 | . . . . . . . . . . . 1 . . . . 2 . . . . 18 . . . . 3 . 12 3 . 2 2 Recycling Unit Hacks 5 | . . . . . . . . . . . . . . . . . . . . . . . . . . 5 . . . . . . Process 2 | . . . . . . . . . . . . . . . . . . . . . . . . . . 2 . . . . . . Report Inventory 1 | . . . . . . . . . . . . . . . . . . . . . . . . . . 1 . . . . . . Retrieve Matter 2 | . . . . . . . . . . . . . . . . . . . . . . . . . . 2 . . . . . . Scanalyzer 10 | . . . . . . 1 . . . . . . . . . . . . . . 2 . . . . . . 4 . . . 3 Insert Component 8 | . . . . . . 1 . . . . . . . . . . . . . . 1 . . . . . . 3 . . . 3 Analyze 2 | . . . . . . . . . . . . . . . . . . . . . 1 . . . . . . 1 . . . . Garrison Access Hacks 6 | . . . . . . . . . . . . . . . . 1 . . . . . . . . . 1 . . . . 2 2 Unlock Access 1 | . . . . . . . . . . . . . . . . . . . . . . . . . . 1 . . . . . . Seal Access 4 | . . . . . . . . . . . . . . . . 1 . . . . . . . . . . . . . . 2 1 Coupler Status 1 | . . . . . . . . . . . . . . . . . . . . . . . . . . . . . . . . 1 Unauthorized Hacks 85 | . . . . . . 5 . . . . 7 . . . . 4 16 . . 7 13 . . . . 8 . 11 12 . . 2 Terminals 31 | . . . . . . 2 . . . . 3 . . . . . 8 . . 3 3 . . . . 3 . 2 6 . . 1 Track 4 | . . . . . . . . . . . . . . . . . 2 . . . . . . . . . . 1 1 . . . Assimilate 5 | . . . . . . . . . . . 1 . . . . . . . . 1 1 . . . . 1 . . 1 . . . Botnet 14 | . . . . . . 2 . . . . 2 . . . . . 3 . . 1 2 . . . . 1 . 1 1 . . 1 Disrupt 6 | . . . . . . . . . . . . . . . . . 2 . . 1 . . . . . . . . 3 . . . Operators 2 | . . . . . . . . . . . . . . . . . 1 . . . . . . . . 1 . . . . . . Fabricators 8 | . . . . . . . . . . . . . . . . 1 . . . . 3 . . . . 1 . 3 . . . . Report 3 | . . . . . . . . . . . . . . . . . . . . . 1 . . . . . . 2 . . . . Siphon 5 | . . . . . . . . . . . . . . . . 1 . . . . 2 . . . . 1 . 1 . . . . Repair Stations . | . . . . . . . . . . . . . . . . . . . . . . . . . . . . . . . . . Recycling Units . | . . . . . . . . . . . . . . . . . . . . . . . . . . . . . . . . . Scanalyzers . | . . . . . . . . . . . . . . . . . . . . . . . . . . . . . . . . . Garrison Access . | . . . . . . . . . . . . . . . . . . . . . . . . . . . . . . . . . Data Cores Recovered 2 | . 1 . . . . . . . . . . . . . . . . . . . . . . . . . . . 1 . . . Used . | . . . . . . . . . . . . . . . . . . . . . . . . . . . . . . . . . Hacking Detections 68 | . . . . . 2 5 . . . . 5 1 1 . . 10 9 . . 7 6 . . . . 6 . 6 5 . 1 4 Full Trace Events 11 | . . . . . 1 1 . . . . 2 . 1 . . 3 1 . . 1 . . . . . . . 1 . . . . Feedback Events . | . . . . . . . . . . . . . . . . . . . . . . . . . . . . . . . . . Feedback Blocked . | . . . . . . . . . . . . . . . . . . . . . . . . . . . . . . . . . Robot Schematics Acquired 5 | . . . . . . . . . . . . . . 5 . . . . . . . . . . . . . . . . . . Robots Built 16 | . . . . . . . . . . . . . . . . . . . . . . . . . . . . . 16 . . . Matter 1008 | . . . . . . . . . . . . . . . . . . . . . . . . . . . . . 1008 . . . Time 379 | . . . . . . . . . . . . . . . . . . . . . . . . . . . . . 379 . . . Total Robot Build Rating 64 | . . . . . . . . . . . . . . . . . . . . . . . . . . . . . 64 . . . Part Schematics Acquired 27 | . . . . . . 1 . . 1 . . 1 . 12 . 3 3 . . 1 2 . . . . . . 3 . . . . Parts Built 22 | . . . . . . . . . . . 2 . . . . 3 . . . . 6 . . . . 2 . 8 1 . . . Matter 4534 | . . . . . . . . . . . 212 . . . . 816 . . . . 1062 . . . . 531 . 1562 351 . . . Time 1610 | . . . . . . . . . . . 35 . . . . 312 . . . . 395 . . . . 364 . 442 62 . . . Total Part Build Rating 144 | . . . . . . . . . . . 12 . . . . 16 . . . . 35 . . . . 12 . 62 7 . . . Parts Repaired 43 | . . . . . . . . . . . 1 . . . . 2 . . . . 18 . . . . 3 . 12 3 . 2 2 Time 1521 | . . . . . . . . . . . 13 . . . . 26 . . . . 932 . . . . 108 . 278 66 . 48 50 Parts Recycled . | . . . . . . . . . . . . . . . . . . . . . . . . . . . . . . . . . Recycled Matter 484 | . . . . . . . . . . . . . . . . . . . . . . . . . . 484 . . . . . . Retrieved Matter 484 | . . . . . . . . . . . . . . . . . . . . . . . . . . 484 . . . . . . Retrieved Components . | . . . . . . . . . . . . . . . . . . . . . . . . . . . . . . . . . Parts Scanalyzed 2 | . . . . . . . . . . . . . . . . . . . . . 1 . . . . . . 1 . . . . Part Schematics Acquired 2 | . . . . . . . . . . . . . . . . . . . . . 1 . . . . . . 1 . . . . Parts Damaged 1 | . . . . . . . . . . . . . . . . . . . . . . . . . . . . 1 . . . . Bothacking | -11 -10 -10 -10 -9 -8 -7 -7 -7 -7 -6 -6 -6 -6 -6 -5 -5 -5 -5 -5 -5 -4 -4 -4 -4 -3 -3 -3 -3 -3 -3 -2 -1 ------------ Run | Scr Mat Min Exi Min Mat Fac Low Low Zio Pro Fac Low Low Dat Pro Fac Ext Cet Arc Hub Fac Upp Upp War Pro Res Gar Res Arm Lab Res Acc Used RIF Installer 1 | . . . . . . . . . . . . . . . . . . . . . . . . . . . 1 . . . . . Robots Hacked . | . . . . . . . . . . . . . . . . . . . . . . . . . . . . . . . . . Non-combat . | . . . . . . . . . . . . . . . . . . . . . . . . . . . . . . . . . Combat . | . . . . . . . . . . . . . . . . . . . . . . . . . . . . . . . . . Robot Hacks Applied . | . . . . . . . . . . . . . . . . . . . . . . . . . . . . . . . . . Relay Couplers Released 9 | . . . . . . . . . . . . . . . . . . . . . . . . . . . 3 . . . 5 1 Machine Destruction 5 | . . . . . . . . . . . . . . . . . . . . . . . . . . . 3 . . . 1 1 Programmers 4 | . . . . . . . . . . . . . . . . . . . . . . . . . . . . . . . 4 . Robots Rewired 16 | . . . . . . . . 2 . . . . . . . . 10 . . . . . . . . . . . 4 . . . Allies Hacked 6 | . . . . . . . . . . 1 . . . . . . . . . . . . . . . . . . 5 . . . Hacks Repelled . | . . . . . . . . . . . . . . . . . . . . . . . . . . . . . . . . . Allies | -11 -10 -10 -10 -9 -8 -7 -7 -7 -7 -6 -6 -6 -6 -6 -5 -5 -5 -5 -5 -5 -4 -4 -4 -4 -3 -3 -3 -3 -3 -3 -2 -1 -------- Run | Scr Mat Min Exi Min Mat Fac Low Low Zio Pro Fac Low Low Dat Pro Fac Ext Cet Arc Hub Fac Upp Upp War Pro Res Gar Res Arm Lab Res Acc Total Allies 52 | . . . . . . . . 2 2 . 1 . . . . . 24 . . 1 . . . . . 1 . . 21 . . . Largest Group 11 | . . . . . . . . 2 4 4 3 1 . . . . 11 8 . 1 . . . . . 1 . . 8 1 1 . Highest-Rated Group 433 | . . . . . . . . 36 224 224 208 26 . . . . 433 238 . 26 . . . . . 44 . . 224 26 26 . Highest-Rated Ally 156 | . . . . . . . . 20 94 94 94 26 . . . . 156 37 . 26 . . . . . 44 . . 56 26 26 . Total Orders 18 | . . . . . . . . . . . . 3 . . . . 3 . . 8 . . . . . . . . 1 2 1 . STAY 6 | . . . . . . . . . . . . 1 . . . . 2 . . 1 . . . . . . . . 1 1 . . GOTO 7 | . . . . . . . . . . . . 1 . . . . . . . 5 . . . . . . . . . . 1 . FOLLOW 5 | . . . . . . . . . . . . 1 . . . . 1 . . 2 . . . . . . . . . 1 . . Ally Attacks 352 | . . . . . . . . 16 2 42 8 . . . . . 174 28 . . . . . . . . . . 82 . . . Total Damage 7756 | . . . . . . . . 258 16 1432 248 . . . . . 3576 444 . . . . . . . . . . 1782 . . . Kills 51 | . . . . . . . . 2 . 10 2 . . . . . 24 3 . . . . . . . . . . 10 . . . Allies Corrupted 1 | . . . . . . . . . . . . . . . . . . . . . . . . . . . . . 1 . . . Allies Melted . | . . . . . . . . . . . . . . . . . . . . . . . . . . . . . . . . . Intel | -11 -10 -10 -10 -9 -8 -7 -7 -7 -7 -6 -6 -6 -6 -6 -5 -5 -5 -5 -5 -5 -4 -4 -4 -4 -3 -3 -3 -3 -3 -3 -2 -1 ------- Run | Scr Mat Min Exi Min Mat Fac Low Low Zio Pro Fac Low Low Dat Pro Fac Ext Cet Arc Hub Fac Upp Upp War Pro Res Gar Res Arm Lab Res Acc Robot Analysis Total 4 | . . . . . . . . . . . . . . . . . . . . . 3 . . . . . . . 1 . . . Derelict Logs Recovered 10 | . . 1 . . . . . 1 3 . . . 1 . 1 . . . . . . 2 1 . . . . . . . . . Drone Launches . | . . . . . . . . . . . . . . . . . . . . . . . . . . . . . . . . . Drone Recoveries . | . . . . . . . . . . . . . . . . . . . . . . . . . . . . . . . . . Exploration | -11 -10 -10 -10 -9 -8 -7 -7 -7 -7 -6 -6 -6 -6 -6 -5 -5 -5 -5 -5 -5 -4 -4 -4 -4 -3 -3 -3 -3 -3 -3 -2 -1 ------------- Run | Scr Mat Min Exi Min Mat Fac Low Low Zio Pro Fac Low Low Dat Pro Fac Ext Cet Arc Hub Fac Upp Upp War Pro Res Gar Res Arm Lab Res Acc Turns Passed 26360 | 48 174 81 269 45 1005 1415 789 708 2602 803 1078 759 638 465 657 1061 1020 311 1600 1018 2301 392 299 653 196 1225 454 1806 1458 166 576 288 Spaces Moved 14752 | 36 116 82 256 40 416 524 376 261 1414 373 471 316 280 161 267 737 694 149 58 423 1584 454 307 594 229 728 192 1164 1067 142 566 275 Core 1 | 1 . . . . . . . . . . . . . . . . . . . . . . . . . . . . . . . . Treads 3723 | . . . . . 208 524 376 91 . . . 121 280 161 267 233 . 43 58 423 523 . . . . 11 179 63 162 . . . Legs 1447 | . . . . . . . . . 187 373 471 195 . . . . 115 106 . . . . . . . . . . . . . . Wheels 2134 | 35 116 82 256 40 208 . . 170 1227 . . . . . . . . . . . . . . . . . . . . . . . Hover 7447 | . . . . . . . . . . . . . . . . 504 579 . . . 1061 454 307 594 229 717 13 1101 905 142 566 275 Flight . | . . . . . . . . . . . . . . . . . . . . . . . . . . . . . . . . . Fastest Speed 48 | 50 100 100 100 110 110 165 197 140 180 200 190 190 225 195 225 58 58 150 160 160 63 68 68 68 68 68 68 48 48 48 48 48 Average Speed 123 | 98 100 100 102 110 144 182 201 186 182 200 192 203 225 210 225 111 92 153 160 160 99 68 79 72 68 84 173 69 76 95 60 64 Slowest Speed 225 | 100 100 100 110 110 165 225 225 205 200 200 200 225 225 225 225 225 216 180 160 160 180 68 138 138 68 216 186 180 190 148 152 138 Overloaded Moves . | . . . . . . . . . . . . . . . . . . . . . . . . . . . . . . . . . Propulsion Burnouts . | . . . . . . . . . . . . . . . . . . . . . . . . . . . . . . . . . Robots Hopped . | . . . . . . . . . . . . . . . . . . . . . . . . . . . . . . . . . Cave-ins Triggered 1 | . . . . . . . . . . . . . . . . . . . . . . . . . . . 1 . . . . . Exploration Rate (%) 43 | 4 26 35 62 9 32 15 55 37 86 58 19 49 45 77 46 12 73 56 68 38 26 62 53 87 46 24 32 33 46 95 25 13 Regions Visited 32 Branch Regions 21 Pre-discovered Areas 5 | . . 1 . . . . . . 2 . . . . 1 . . . . . . . 1 . . . . . . . . . . Known Exits Taken 11 | . 1 . . . 1 1 . . 1 . 1 . . . . 1 . . . 1 1 . . . . 1 . 1 . 1 . . Unknown Exits Taken 20 | 1 . 1 1 1 . . 1 1 . 1 . 1 1 1 1 . 1 1 1 . . 1 1 1 1 . . . 1 . 1 . Scrap Searched 20 | . . . . . . . 2 1 3 1 . 3 . . 5 . . . . . . 2 2 . 1 . . . . . . . Spaces Dug 107 | . . . . . . 9 . . . . . . . . 4 17 11 . . 8 7 . . . . 6 1 20 16 . 3 5 Terrain Destroyed 1503 | . . . . . 28 22 2 7 . 1 26 79 . 25 39 58 27 56 7 360 20 207 127 1 92 64 40 88 43 . 78 6 Melee . | . . . . . . . . . . . . . . . . . . . . . . . . . . . . . . . . . Projectile 225 | . . . . . 8 18 2 7 . 1 8 8 . . 8 21 27 . 7 28 20 . 5 1 . 9 7 6 22 . 6 6 AOE 1278 | . . . . . 20 4 . . . . 18 71 . 25 31 37 . 56 . 332 . 207 122 . 92 55 33 82 21 . 72 . Actions | -11 -10 -10 -10 -9 -8 -7 -7 -7 -7 -6 -6 -6 -6 -6 -5 -5 -5 -5 -5 -5 -4 -4 -4 -4 -3 -3 -3 -3 -3 -3 -2 -1 --------- Run | Scr Mat Min Exi Min Mat Fac Low Low Zio Pro Fac Low Low Dat Pro Fac Ext Cet Arc Hub Fac Upp Upp War Pro Res Gar Res Arm Lab Res Acc Total 21418 | 45 147 81 264 41 647 860 395 360 1434 423 611 401 286 292 300 930 965 207 1530 675 2220 497 346 813 254 1217 286 2073 1539 172 741 366 Wait 4637 | . 12 . . 2 73 192 . 14 2 44 84 57 . 94 . 87 121 9 1445 185 470 . 18 189 9 308 42 782 225 6 101 66 Move 14719 | 35 115 81 255 39 415 523 375 260 1413 372 470 315 279 160 266 736 693 148 57 422 1583 453 306 593 228 728 190 1163 1066 141 565 274 Hop . | . . . . . . . . . . . . . . . . . . . . . . . . . . . . . . . . . Pick Up 272 | 4 3 . 4 . 25 24 7 4 12 1 14 3 2 6 8 19 10 6 1 4 32 2 4 7 . 13 4 18 23 5 7 . Fast Attach 110 | 6 1 . . . 1 3 . 3 1 . . . 1 4 . 6 5 6 1 . 11 . . 3 2 7 . 5 33 4 5 2 Attach 146 | . . . . . 14 15 . 14 . . 4 3 1 4 2 10 8 2 1 2 18 . . 2 . 14 3 5 12 1 9 2 Detach 74 | . . . . . 2 . . . . . 1 2 . 5 . 11 5 2 2 . 13 . . 1 1 11 . 1 7 2 7 1 Swap 245 | . . . 2 . 7 9 3 3 2 1 9 2 1 2 6 6 9 5 5 10 20 7 3 5 4 20 14 37 36 1 9 7 Drop 196 | . . . 3 . 6 7 4 . 4 1 12 1 1 11 4 21 5 12 2 2 15 2 4 10 . 12 2 13 29 9 4 . Fire 924 | . 16 . . . 104 85 6 58 . 4 17 18 1 . 14 34 66 17 15 50 58 33 11 3 10 91 18 49 95 3 34 14 Melee 1 | . . . . . . . . . . . . . . 1 . . . . . . . . . . . . . . . . . . Ram 1 | . . . . . . . . 1 . . . . . . . . . . . . . . . . . . . . . . . . Kick . | . . . . . . . . . . . . . . . . . . . . . . . . . . . . . . . . . Crush 2 | . . . . . . . . 1 . . . . . . . . . . 1 . . . . . . . . . . . . . Escape Stasis 41 | . . . . . . 2 . . . . . . . . . . 13 . . . . . . . . 13 13 . . . . . Rewire 45 | . . . . . . . . 2 . . . . . . . . 30 . . . . . . . . . . . 13 . . . Trap 5 | . . . . . . . . . . . . . . 5 . . . . . . . . . . . . . . . . . . Miscellaneous . | . . . . . . . . . . . . . . . . . . . . . . . . . . . . . . . . . Route ------- -11/Scrapyard -10/Materials -10/Mines -10/Exiles -9/Mines -8/Materials (discovered 3 exits: *Fac x3) -7/Factory (discovered 2 exits: *Low x2) -7/Lower Caves -7/Lower Caves -7/Zion (discovered 2 exits: *Dee / *Pro) -6/Proximity Caves -6/Factory (discovered 2 exits: *Low x2) -6/Lower Caves -6/Lower Caves -6/Data Miner -5/Proximity Caves -5/Factory (discovered 3 exits: [*Upp] / *Ext x2) -5/Extension (discovered 2 exits: *Fac / *Cet) -5/Cetus (discovered 2 exits: *Fac / [*Arc]) -5/Archives (discovered 2 exits: *Hub x2) -5/Hub_04(d) (discovered 4 exits: *Fac x4) -4/Factory (discovered 3 exits: *Res / *Upp x2) -4/Upper Caves -4/Upper Caves (discovered 2 exits: *Res / *War) -4/Warlord -3/Proximity Caves -3/Research (discovered 5 exits: Res x3 / Tes / Gar) -3/Garrison -3/Research (discovered 5 exits: *Res x2 / *Arm / *Tes x2) -3/Armory (discovered 3 exits: *Res x2 / [*Lab]) -3/Lab -2/Research (discovered 2 exits: *Acc / Qua) -1/Access To Epsilon Eridani History --------- Turn | Location | Event 31 | -11/Scrapyard | Discovered new exit (range 14) 49 | -11/Scrapyard | Entered Materials 68 | -10/Materials | Identified exit to Mines 223 | -10/Materials | Entered Mines 299 | -10/Mines | Deemed a non-threat by the Exiles lab entrance 300 | -10/Mines | Discovered new exit (range 5) 304 | -10/Mines | Entered Exiles 309 | -10/Exiles | Build established: Mutant 327 | -10/Exiles | Met 8R-AWN 343 | -10/Exiles | Met EX-HEX 373 | -10/Exiles | Met EX-BIN 388 | -10/Exiles | Aligned with FarCom system 389 | -10/Exiles | Given EX-Vault access code 415 | -10/Exiles | Opened EX-Vault 420 | -10/Exiles | Found AWS/Autocannon 442 | -10/Exiles | Warned to stay clear of 0b10 Research branches 470 | -10/Exiles | Met EX-DEC 565 | -10/Exiles | Discovered new exit (range 10) 573 | -10/Exiles | Left Exiles lab with AWS/Autocannon 573 | -10/Exiles | Entered Mines 596 | -9/Mines | Discovered new exit (range 8) 618 | -9/Mines | Entered Materials 618 | -8/Materials | Evolved 4 slots: Utility x4 865 | -8/Materials | Lost 3 parts (3w) 1409 | -8/Materials | Build established: Hauler-Mutant 1531 | -8/Materials | Identified exit to Factory 1623 | -8/Materials | Entered Factory 1623 | -7/Factory | Evolved 2 slots: Utility x2 2141 | -7/Factory | Lost 3 parts (1p2u) 2593 | -7/Factory | Lost 7 parts (1p2n1u3w) 2906 | -7/Factory | Discovered new exit (range 4) 2983 | -7/Factory | Identified exit to Lower Caves 2996 | -7/Factory | Build established: Scavenger-Mutant 3038 | -7/Factory | Entered Lower Caves 3488 | -7/Lower Caves | Build established: Hauler-Mutant 3706 | -7/Lower Caves | Discovered new exit (range 12) 3827 | -7/Lower Caves | Entered another Lower Caves area 3893 | -7/Lower Caves | Lost 5 parts (1p1n1u2w) 4053 | -7/Lower Caves | Attracted the attention of an 0b10 outpost 4053 | -7/Lower Caves | Core integrity fell below 50% 4155 | -7/Lower Caves | Lost 9 parts (1p1n4u3w) 4174 | -7/Lower Caves | Core integrity fell below 20% 4212 | -7/Lower Caves | Lost 3 parts (2n1w) 4503 | -7/Lower Caves | Discovered new exit (range 15) 4535 | -7/Lower Caves | Entered Zion 4535 | -7/Zion | Accompanied by 2 allies 4613 | -7/Zion | System corruption cleaned by Quarantine Array 4710 | -7/Zion | Identified exit to Deep Caves 4762 | -7/Zion | Found Prototype Device 4824 | -7/Zion | Learned location of Armory (-3) 5111 | -7/Zion | Acquired unknown access codes intercepted by a Zionite 5641 | -7/Zion | Received a hallucinogenic algorithm 6116 | -7/Zion | Opened final containment barrier to the Deep Caves 6149 | -7/Zion | Saw the warning signs outside the Deep Caves entrance 6535 | -7/Zion | Identified exit to Proximity Caves 6630 | -7/Zion | Given A8's code to call for help 6682 | -7/Zion | Learned location of Extension (-5) 6923 | -7/Zion | Enhanced Grunt warped into view, answering call for help 6924 | -7/Zion | Enhanced Grunt warped into view, answering call for help 7137 | -7/Zion | Entered Proximity Caves 7137 | -6/Proximity Caves | Accompanied by 4 allies 7149 | -6/Proximity Caves | Attracted the attention of an 0b10 checkpoint 7917 | -6/Proximity Caves | Discovered new exit (range 10) 7940 | -6/Proximity Caves | Entered Factory 7940 | -6/Factory | Accompanied by 3 allies 7940 | -6/Factory | Evolved 2 slots: Utility x1, Weapon x1 8173 | -6/Factory | Fabricated Hyp. Gauss Cannon? 8299 | -6/Factory | Found Prototype Device 8301 | -6/Factory | Identified Exp. Thermal Shield 8384 | -6/Factory | Identified exit to Lower Caves 8809 | -6/Factory | Build established: Hauler-Tank 8847 | -6/Factory | Repaired Lrg. Storage Unit 9018 | -6/Factory | Entered Lower Caves 9018 | -6/Lower Caves | Accompanied by 1 ally 9294 | -6/Lower Caves | Encountered a Warlord checkpoint 9672 | -6/Lower Caves | Discovered new exit (range 4) 9690 | -6/Lower Caves | Build established: Hauler-Mutant 9777 | -6/Lower Caves | Entered another Lower Caves area 9885 | -6/Lower Caves | Learned Factory interactive machine intel 9895 | -6/Lower Caves | Encountered a Warlord checkpoint 10379 | -6/Lower Caves | Discovered new exit (range 11) 10415 | -6/Lower Caves | Entered Data Miner 10415 | -6/Data Miner | Discovered new exit (range 8) 10458 | -6/Data Miner | Met Data Miner 10495 | -6/Data Miner | Learned location of Section 7 (-2) 10495 | -6/Data Miner | Acquired the access code to Warlord's prototype stash 10526 | -6/Data Miner | Received God Mode back door access code from Data Miner 10561 | -6/Data Miner | Identified Bomb Factory No. 2 10756 | -6/Data Miner | Destroyed Data Miner 10760 | -6/Data Miner | Found Prototype Hackware 10764 | -6/Data Miner | Found Prototype Hackware 10765 | -6/Data Miner | Data Conduit disabled 10767 | -6/Data Miner | Found Prototype Hackware 10880 | -6/Data Miner | Entered Proximity Caves 11340 | -5/Proximity Caves | Spotted B-75 Beast 11366 | -5/Proximity Caves | Destroyed B-75 Beast 11390 | -5/Proximity Caves | Lost 3 parts (3u) 11473 | -5/Proximity Caves | Discovered new exit (range 14) 11491 | -5/Proximity Caves | Learned Factory trap positions 11537 | -5/Proximity Caves | Entered Factory 11537 | -5/Factory | Evolved 2 slots: Propulsion x2 11538 | -5/Factory | Identified exit to Extension 11539 | -5/Factory | Loaded intel: 116 trap records 11540 | -5/Factory | Loaded intel: 47 interactive machine locations 11623 | -5/Factory | Repaired Lrg. Storage Unit 11649 | -5/Factory | Discovered new exit (range 3) 11829 | -5/Factory | Identified System Mapper 11927 | -5/Factory | Discovered exit to Extension (range 9) 12141 | -5/Factory | Fabricated Exp. Utility Shielding? 12281 | -5/Factory | Fabricated Mni. Smartbomb Launcher? 12383 | -5/Factory | Fabricated Exp. Propulsion Shielding (x1) 12445 | -5/Factory | Build established: Hacker-Mutant 12488 | -5/Factory | Identified Deep Network Scanner 12504 | -5/Factory | Repaired Lrg. Storage Unit 12531 | -5/Factory | Local fabrication network quarantined 12598 | -5/Factory | Entered Extension 12601 | -5/Extension | Disrupted transfer network 12647 | -5/Extension | Rescued A7 12694 | -5/Extension | Rescued a captive Derelict 12695 | -5/Extension | Rescued a captive Derelict 12709 | -5/Extension | Rescued a captive Derelict 12711 | -5/Extension | Rescued a captive Derelict 12725 | -5/Extension | Rescued a captive Derelict 12732 | -5/Extension | Central database locked down 12732 | -5/Extension | Rescued a captive Derelict 12732 | -5/Extension | Rescued a captive Derelict 12769 | -5/Extension | Rescued a captive Derelict 13043 | -5/Extension | Spotted B-75 Beast 13046 | -5/Extension | Spotted B-75 Beast 13060 | -5/Extension | Destroyed B-75 Beast 13082 | -5/Extension | Extracted ID and sensor layout for unrecognized location from A7's data core 13105 | -5/Extension | Destroyed B-75 Beast 13243 | -5/Extension | Rescued a captive Derelict 13330 | -5/Extension | Rescued a captive Derelict 13333 | -5/Extension | Rescued a captive Derelict 13360 | -5/Extension | Rescued a captive Derelict 13455 | -5/Extension | Rescued a captive Derelict 13491 | -5/Extension | Rescued a captive Derelict 13576 | -5/Extension | Discovered new exit (range 10) 13578 | -5/Extension | Discovered new exit (range 6) 13618 | -5/Extension | Entered Cetus 13618 | -5/Cetus | Accompanied by 8 allies 13642 | -5/Cetus | Spotted Cetus Guard 13642 | -5/Cetus | Spotted Cetus Guard 13647 | -5/Cetus | Spotted Cetus Guard 13647 | -5/Cetus | Spotted Cetus Guard 13654 | -5/Cetus | Allies destroyed Cetus Guard 13657 | -5/Cetus | Destroyed Cetus Guard 13660 | -5/Cetus | Allies destroyed Cetus Guard 13674 | -5/Cetus | Destroyed Cetus Guard 13771 | -5/Cetus | Discovered new exit (range 16) 13799 | -5/Cetus | Spotted Cetus Guard 13799 | -5/Cetus | Spotted Cetus Guard 13802 | -5/Cetus | Spotted Cetus Guard 13806 | -5/Cetus | Destroyed Cetus Guard 13806 | -5/Cetus | Spotted Cetus Guard 13808 | -5/Cetus | Destroyed Cetus Guard 13810 | -5/Cetus | Destroyed Cetus Guard 13813 | -5/Cetus | Destroyed Cetus Guard 13824 | -5/Cetus | Discovered new exit (range 16) 13845 | -5/Cetus | Met Revision 17 13853 | -5/Cetus | Destroyed 8 combat bots 13929 | -5/Cetus | Entered Archives 14074 | -5/Archives | Discovered new exit (range 16) 14085 | -5/Archives | Discovered new exit (range 16) 14316 | -5/Archives | Build established: Hacker-Skirmisher 15529 | -5/Archives | Entered Hub_04(d) 15749 | -5/Hub_04(d) | Identified exit to Factory 16195 | -5/Hub_04(d) | Build established: Scavenger-Mutant 16304 | -5/Hub_04(d) | Found Prototype Processor 16536 | -5/Hub_04(d) | Network Hub disabled 16539 | -5/Hub_04(d) | Network Hub disabled 16547 | -5/Hub_04(d) | Entered Factory 16547 | -4/Factory | Evolved 2 slots: Power x1, Utility x1 16647 | -4/Factory | Repaired Exp. Utility Shielding? 16734 | -4/Factory | Repaired Centrium Heavy Treads 16734 | -4/Factory | Identified Quantum Router 16763 | -4/Factory | Repaired Hyp. Gauss Cannon? 16804 | -4/Factory | Repaired Centrium Medium Armor Plating? 16824 | -4/Factory | Repaired Cmb. Gravmag System? 16890 | -4/Factory | Repaired Adv. Hacking Suite 16952 | -4/Factory | Repaired Cmb. Gravmag System 16954 | -4/Factory | Repaired System Backup Module? 17019 | -4/Factory | Repaired Hyp. Gauss Cannon 17047 | -4/Factory | Repaired Centrium Medium Armor Plating 17102 | -4/Factory | Repaired Imp. KE Penetrator? 17122 | -4/Factory | Repaired Imp. KE Penetrator 17148 | -4/Factory | Repaired Lrg. Storage Unit 17237 | -4/Factory | Repaired Adv. System Shield 17266 | -4/Factory | Repaired Imp. Plasma Cutter 17438 | -4/Factory | Identified exit to Upper Caves 17629 | -4/Factory | Build established: Wizard-Mutant 17684 | -4/Factory | Repaired Cmb. Gravmag System 17938 | -4/Factory | Repaired Adv. Transmission Jammer? 18000 | -4/Factory | Repaired Gyrokinetic Inverter 18189 | -4/Factory | Garrison activated, responded to threat 18305 | -4/Factory | Fabricated Exp. Terrain Scanner? 18357 | -4/Factory | Fabricated Exp. Terrain Scan Processor? 18398 | -4/Factory | Fabricated Exp. Weapon Shielding (x1) 18464 | -4/Factory | Fabricated Adv. Core Analyzer (x1) 18469 | -4/Factory | Local fabrication network quarantined 18518 | -4/Factory | Fabricated Cmb. Gravmag System (x2) 18545 | -4/Factory | Discovered new exit (range 4) 18727 | -4/Factory | Identified Exp. Signal Interpreter 18848 | -4/Factory | Entered Upper Caves 18934 | -4/Upper Caves | Spotted B-86 Titan 18973 | -4/Upper Caves | Destroyed B-86 Titan 19144 | -4/Upper Caves | Destroyed 9 combat bots 19230 | -4/Upper Caves | Discovered new exit (range 15) 19240 | -4/Upper Caves | Entered another Upper Caves area 19273 | -4/Upper Caves | Discovered new exit (range 14) 19362 | -4/Upper Caves | Destroyed 8 combat bots 19392 | -4/Upper Caves | Learned Research terminal intel 19428 | -4/Upper Caves | Discovered new exit (range 12) 19539 | -4/Upper Caves | Entered Warlord 19585 | -4/Warlord | System corruption cleaned by Quarantine Array 19667 | -4/Warlord | Received a Watcher feed algorithm from an ecstatic Tinkerer 19782 | -4/Warlord | Met Warlord 19788 | -4/Warlord | Opened Warlord's prototype stash 19795 | -4/Warlord | Found Prototype Device 19795 | -4/Warlord | Identified Exp. Cloaking Device 19803 | -4/Warlord | Found Prototype Processor 19805 | -4/Warlord | Found Prototype Device 19806 | -4/Warlord | Identified System Purifier 19807 | -4/Warlord | Warlord's base attacked by MAIN.C 20157 | -4/Warlord | Warlord forces counterattacked 20173 | -4/Warlord | Opened side exit 20186 | -4/Warlord | Discovered new exit (range 10) 20192 | -4/Warlord | Entered Proximity Caves 20303 | -3/Proximity Caves | Discovered new exit (range 26) 20388 | -3/Proximity Caves | Entered Research 20388 | -3/Research | Evolved 2 slots: Utility x2 20389 | -3/Research | Loaded intel: 18 terminal locations 20412 | -3/Research | Identified exit to Research 20553 | -3/Research | Repaired Exp. Utility Shielding? 20605 | -3/Research | Repaired Exp. Propulsion Shielding 20610 | -3/Research | Discovered new exit (range 29) 20639 | -3/Research | Repaired Hyp. Gauss Cannon 21055 | -3/Research | Destroyed 8 combat bots 21186 | -3/Research | Fabricated Imp. Powered Armor? 21559 | -3/Research | Fabricated Imp. Powered Armor (x1) 21613 | -3/Research | Identified exit to Garrison 21613 | -3/Research | Entered Garrison 21617 | -3/Garrison | Installed Relay Interface Framework 21914 | -3/Garrison | Crushed by falling debris 21945 | -3/Garrison | Discovered new exit (range 4) 21984 | -3/Garrison | Triggered checkpoint 22007 | -3/Garrison | Garrison Relay disabled 22067 | -3/Garrison | Entered Research 22201 | -3/Research | Repaired Cmb. Gravmag System 22224 | -3/Research | Repaired Cmb. Gravmag System 22243 | -3/Research | Repaired Cmb. Gravmag System 22261 | -3/Research | Repaired Hyp. Gauss Cannon 22285 | -3/Research | Identified Exp. Core Analyzer 22286 | -3/Research | Discovered new exit (range 28) 22431 | -3/Research | Fabricated Exp. Utility Shielding? 22538 | -3/Research | Fabricated Exp. Utility Shielding? 22584 | -3/Research | Discovered exit to Research (range 28) 22616 | -3/Research | Identified exit to Armory 22616 | -3/Research | Identified exit to Testing 22616 | -3/Research | Central database locked down 22642 | -3/Research | Build established: Wizard-Scout 22854 | -3/Research | Discovered exit to Research (range 24) 22967 | -3/Research | Fabricated EM Dispersion Field (x1) 23169 | -3/Research | Fabricated Cmb. Linear Gravjet (x2) 23239 | -3/Research | Fabricated Cmb. Linear Gravjet (x2) 23319 | -3/Research | Repaired Adv. Variable Charge Gun 23340 | -3/Research | Repaired Hyp. Mass Driver 23389 | -3/Research | Repaired Hyp. Gauss Cannon 23416 | -3/Research | Repaired Exp. Propulsion Shielding 23446 | -3/Research | Repaired Mni. Smartbomb Launcher 23498 | -3/Research | Spotted B-86 Titan 23546 | -3/Research | Repaired Exp. Weapon Shielding 23565 | -3/Research | Repaired Imp. Plasma Cutter 23594 | -3/Research | Repaired Adv. Coolant Injector? 23733 | -3/Research | Fabricated Exp. Transmission Jammer (x1) 23756 | -3/Research | Build established: Wizard-Mutant 23873 | -3/Research | Entered Armory 24628 | -3/Armory | Found Prototype Device 24629 | -3/Armory | Identified Adv. Kinecellerator 24684 | -3/Armory | Fabricated Adv. Variable Charge Gun (x1) 24729 | -3/Armory | Fabricated S-27 Virus? 24760 | -3/Armory | Core integrity fell below 50% 24792 | -3/Armory | Fabricated S-27 Virus (x4) 24806 | -3/Armory | Lost 3 parts (2p1u) 24842 | -3/Armory | Fabricated S-27 Virus? 24846 | -3/Armory | Fabricated S-27 Virus? 24870 | -3/Armory | Local fabrication network quarantined 25036 | -3/Armory | Discovered new exit (range 23) 25146 | -3/Armory | P-80 Master assimilated allied Assassin 8b 25223 | -3/Armory | Repaired Exp. Utility Shielding? 25266 | -3/Armory | Repaired Hyp. Railgun 25285 | -3/Armory | Repaired Imp. Powered Armor 25331 | -3/Armory | Entered Lab 25331 | -3/Lab | Accompanied by 1 ally 25331 | -3/Lab | Discovered exit to Research (range 9) 25337 | -3/Lab | Hidden lab's door opened automatically 25337 | -3/Lab | Sensor layout match revealed 25338 | -3/Lab | Gained access to the hidden lab's interior 25355 | -3/Lab | Found Prototype Protection 25355 | -3/Lab | Identified Exp. Powered Armor 25360 | -3/Lab | Found Prototype Energy Cannon 25360 | -3/Lab | Identified Potential Cannon 25363 | -3/Lab | Found Prototype Energy Gun 25363 | -3/Lab | Identified Hyp. EM Gauss Rifle 25372 | -3/Lab | Found Prototype Special Weapon 25372 | -3/Lab | Identified Gui. Remote Datajack 25409 | -3/Lab | Found Deep Network Scanner 25439 | -3/Lab | Found Alien Artifact 25451 | -3/Lab | Found Alien Artifact 25460 | -3/Lab | Found Alien Artifact 25497 | -3/Lab | Entered Research 25497 | -2/Research | Accompanied by 1 ally 25497 | -2/Research | Warlord forces began assault on 0b10 25497 | -2/Research | Evolved 2 slots: Utility x2 25498 | -2/Research | Identified exit to Quarantine 25550 | -2/Research | Repaired Hyp. Railgun 25577 | -2/Research | Repaired Exp. Utility Shielding 25607 | -2/Research | Research machine network offline 25980 | -2/Research | Borebot progress halted 25987 | -2/Research | Spotted B-90 Cyclops 26000 | -2/Research | Borebot progress halted 26065 | -2/Research | Discovered new exit (range 13) 26073 | -2/Research | Entered Access 26073 | -1/Access | Evolved 2 slots: Propulsion x1, Utility x1 26182 | -1/Access | Repaired Exp. Utility Shielding 26208 | -1/Access | Repaired Cmb. Linear Gravjet 26248 | -1/Access | Identified exit to Surface 26259 | -1/Access | Identified Transdimensional Reconstructor 26259 | -1/Access | Identified Core Regenerator 26259 | -1/Access | Identified Integrated Reactor 26259 | -1/Access | Installed Integrated Reactor, increased core energy generation (+2%) 26361 | *** | Escaped! Last Messages --------------- Scanning Alien Artifact... ID: Core Regenerator >>Insert(Alien Artifact) Scanning Alien Artifact... ID: Integrated Reactor 26259_ Integrated Reactor installed, core energy generation increased (+10). 26287_ W-44 Eye system terminally corrupted. 26287_ Adv. Sensor Array fried. 26287_ Lgt. Antimatter Reactor fried. 26319_ U-05 Engineer builds a Wall. 26319_ Destroyed Lgt. Ion Engine. 26323_ ALERT: Construction progress impeded, dispatching reinforcements to local area. 26351_ Detecting nearby Garrison Access. 26357_ Connecting with Terminal... >>Open Sealed Barrier opened. 26359_ The Access Shell folds into the floor. [Achievement: This Only Looks Like Junk] Map ----- +----------------------------------------------------+ | ??##??####?#??###############?#?#?#?#?#??#???????? | | #?##?##?#?#######?#??##??##??###???#?????????????? | | #?#?###????######??###?#??#?####???##?#??????????? | | ##??#?####?###??###???#??#?####?#?#??###?#???#???? | | ?##? ?#??##?#??###??#?#?##??#???#?????###????????? | | #### ######## ? ? ?##?#??##?#?#?##??#?????? | | #### #?####?? ? ? ? #?#??####??#??#?##?????? | | ####? ##?##?## ?? ?####???########?#??#??? | | ####? #??##?#? ? ??? #??###???##??##?#?#????? | | ##?#? #???#### ? "? ? ###???######?#?##?##??#? | | #?## ?####?###?? "??? ?##?#?######??#?#???#?#? | | ? ? ? ""?""" ??#######??#??????#?#???#? | | ? ? ? ? ??? ?"??"?? ?####???#????######?##??? | | ####+?#?#?# ?# "? ?? ######????###????#??#??? | | # ? # + "" ? ?##?#####?##?#??# ? ? ? | | # ? ? # # ? ? ###?#?#######?##? ?? ??? | | ? ? # ? ? ? #####?##?####???? ??? ?? | | # ? " ? ?# ##?#?#########?########?##??# ? ??? | | # " " # ###########?##########?#?####?? ? ?" | | # ""G?" # ####### ##############?######?????? ? | | # ? # """T""" """" ? ? ? ???? | | # ? ?# """ """ ""?" BB ?? # ???? ? | | ########### """" BB ?##?????? | | ########### """" ??? ?? ? ? | | ########### "" """?? ????? ??????? | | ###########R @" "?"" ? ? ? ? ?? | | ########### """" ??? ?????? | | ########### """? BB ? #???##??# | | ########### """" BB #? ? ???? | | ########### ""?"? ? ?#? ?????? | | ########### ####### #################?#?? ? ????? | | ########### #################?#####?#?### "?? ? | | ########### ###############?###?####?#?## "T?? ? | | # ###?###########?##########??#??""? ?? | | # ############################# "???? | | + #########################?#?? ? ?? | | # #############?######?#?###?## ??? ?? | | + ##################?####??#?#?#??????? | | # #######?#?############ ? ????#??? | | # ###################### ? ?????#??# | | # #####################? ? ? ??#??? | | # ############ ## ? ???????#??? | | ########"## ############ ## ????#???? | | ########"## ####### # ## ? ????? ????? | | Y # ## ? ?"? ??????? | | + ?? ## ????????????? | | #######+###+######## # ?#? "???????????? | | ##### ####### ## ? ## ""??????????? | | ##### ####### ## ##? ???????????? | | ##### ####### ## ?# ??"?????????? | +----------------------------------------------------+ Best States ------------- Heat Dissipation 62 Coolant Potential 100 Energy Generation 51 Energy Capacity 1030 Matter Stores 300 Matter Capacity 300 Sight Range 16 Robot Scan Range 16 Terrain Scan Range 30 Terrain Scan Density 1010 Jamming Range 22 Cloak Strength 4 Armor Coverage 1350 Resistance: TH 30 Resistance: EM 75 Propulsion Shielding 90 Utility Shielding 90 Weapon Shielding 90 Weapon Cycling 25 Phase Shifting 15 Evasion (%) 73 Core Analysis 15 Recoil Reduction 4 Energy Filtering 50 Particle Charging 15 Kinecelleration 50 Salvage Targeting 4 Offensive Hacking 84 Defensive Hacking 25 Item Schematics ----------------- Hyp. Gauss Cannon | -7/Factory | Hacked Enh. Flamer | -7/Zion | Free Cmb. Airjet | -6/Lower Caves | Hacked Combat Drone Bay | -6/Data Miner | Free Lgt. Regenerative Plating | -6/Data Miner | Free Cmb. Gravmag System | -6/Data Miner | Free Exp. Cesium-ion Thruster | -6/Data Miner | Free Exp. Sensor Array | -6/Data Miner | Free Exp. Terrain Scanner | -6/Data Miner | Free Tactical Coordination Suite | -6/Data Miner | Free Exp. Transmission Jammer | -6/Data Miner | Free Exp. ECM Suite | -6/Data Miner | Free Mni. Smartbomb Launcher | -6/Data Miner | Free Plasma Sword | -6/Data Miner | Free Kinetic Spear | -6/Data Miner | Free Exp. Utility Shielding | -5/Factory | Hacked Exp. Terrain Scan Processor | -5/Factory | Hacked Exp. Propulsion Shielding | -5/Factory | Hacked Exp. Weapon Shielding | -5/Extension | Hacked Adv. Hacking Suite | -5/Extension | Hacked Imp. Powered Armor | -5/Extension | Hacked Adv. Core Analyzer | -5/Hub_04(d) | Hacked Prc. Energy Filter | -4/Factory | Hacked Exp. Signal Interpreter | -4/Factory | Scanalyzed Adv. Variable Charge Gun | -3/Research | Scanalyzed Cmb. Linear Gravjet | -3/Research | Hacked EM Dispersion Field | -3/Research | Hacked Robot Schematics ------------------ S-27 Virus | -6/Data Miner | Free G-50 Soldier | -6/Data Miner | Free G-67 Veteran | -6/Data Miner | Free P-70 Sage | -6/Data Miner | Free I-36 Angel | -6/Data Miner | Free Fabricated ------------ Hyp. Gauss Cannon | x2 | -6/Factory Exp. Utility Shielding | x1 | -5/Factory Mni. Smartbomb Launcher | x1 | -5/Factory Exp. Propulsion Shielding | x1 | -5/Factory Exp. Terrain Scanner | x1 | -4/Factory Exp. Terrain Scan Processor | x1 | -4/Factory Exp. Weapon Shielding | x1 | -4/Factory Adv. Core Analyzer | x1 | -4/Factory Cmb. Gravmag System | x2 | -4/Factory Imp. Powered Armor | x1 | -3/Research Imp. Powered Armor | x1 | -3/Research Exp. Utility Shielding | x1 | -3/Research Exp. Utility Shielding | x1 | -3/Research EM Dispersion Field | x1 | -3/Research Cmb. Linear Gravjet | x2 | -3/Research Cmb. Linear Gravjet | x2 | -3/Research Exp. Transmission Jammer | x1 | -3/Research Adv. Variable Charge Gun | x1 | -3/Armory S-27 Virus | x4 | -3/Armory S-27 Virus | x4 | -3/Armory S-27 Virus | x4 | -3/Armory S-27 Virus | x4 | -3/Armory Alien Tech Used ----------------- Integrated Reactor Achievements -------------- This Only Looks Like Junk Challenges ------------ Scavenger Game ------ Seed DeepGreatDiverter Manual? 0 Play Time 04:59:24 Cumulative 748.5 hours Start 2019.11.22 @ 01:32:37 End 2019.11.22 @ 19:27:27 Sessions 5 Manual Loads 0 Difficulty Rogue Special Mode None Game No. 207 Rogue 207 Adventurer 0 Explorer 0 Win Type 0 Total 38 Types 29/0/2/3/2/1/1 Lore% 96 Gallery% 98 Achievement% 93 Wizard Run 0 Options --------- ASCII 0 Keyboard 1 Movement Numpad Keybinds 0 Fullscreen 1 Font 18/SmallcapsGlow Map View 76x50 Tactical HUD 1 Map Filters NONE Filters NONE Steam 1 RUN: 35343254-cebb-48b7-a09b-3e3a844202e6